Workbook

Sheet SteadyStateDosing (hidden)
B1: Phenobarbital Population Based Dosing (Pkineticdrugdosing.com)
B2: Select Patient Age Range - Drop Down Box | C2: 19 - 65 years
B3: Input Weight (kg) | C3: 80
B4: Select Interacting Med. Being Taken - Drop Down Box | C4: None
B5: Clearance Multiplication Factor for Drug Interaction | C5: =VLOOKUP(C4,ParameterSelection!Q2:R6,2,FALSE) -> 1
B6: Population Volume of Distribution (L/kg) | C6: =VLOOKUP(C2,ParameterSelection!G8:I15,3,FALSE) -> 0.61
B7: Calculated Volume of Distribution (Liters) | C7: =C6*C3 -> 48.8
B8: Population Clearnace (L/hour/kg) | C8: =VLOOKUP(C2,ParameterSelection!G8:H15,2,FALSE) -> 0.004166666667
B9: Calculated Clearance (L/hours) | C9: =C3*C8*C5 -> 0.3333333333
B10: K calculated (1/hours) | C10: =C9/C7 -> 0.006830601093
B11: Half Life (Days) | C11: =0.693/(24*C10) -> 4.2273 | F11: 20
B12: Days to 87.5% of Steady State (3 half-lives) | C12: =C11*3 -> 12.6819
B13: Select Dosage Form (Note IV product is given rectally) Drop Down Box | C13: Oral
B14: Fraction Absorded (F) for Dosage Form | C14: =IF(C13="IV",1,IF(C13="IM",1,IF(C13="Rectal",0.9,IF(C13="Oral",1)))) -> 1
B15: Salt (S) for Dosage Form | C15: =IF(C13="IV",0.91,IF(C13="IM",0.91,IF(C13="Oral",1,IF(C13="Rectal",0.91)))) -> 1
B16: Input Peak Level (mg/L) Desired From Loading Dose | C16: 20
B17: Calculated Loading Dose (mg) Assumed IV | C17: =C16*C3*C6/0.91 -> 1072.527473
B18: Calculated Loading Dose (mg/kg) | C18: =C17/C3 -> 13.40659341
B19: Input Desired Steady State Level (mg/L) | C19: 20
B20: Calculated Maintenance Dose (mg/day) | C20: =C19*C9*24/(C14*C15) -> 160
B21: Calculated Maintenance Dose (mg/kg/day) | C21: =C20/C3 -> 2
B22: Input Round Dose (mg/day) | C22: 200
B23: Calculated Steady State Level (mg/L) | C23: =C14*C15*C22/(C9*24) -> 25
B25: Serum Level Based Dosing
B26: Input Measured State State Serum Level (mg/L) | C26: 29
B27: Calculated Days To Obtain Desired Level when Measured Level Is Greater Than Desired Level. Assumes Doses Are Not Given During This Time Period. | C27: =IF(C26>C19,LN(C26/C19)/(C29*24),"") -> 2.629183725
B28: Calculated Clearance (L/hour) from level | C28: =C14*C15*C22/(24*C26) -> 0.2873563218
B29: Calculated K (1/hours) from level | C29: =C28/C7 -> 0.005888449218
B30: Calculated Half-Life (Days) from level | C30: =0.693/(24*C29) -> 4.903668
B31: Daily Dose (mg/day) Required For Desired Level Input Above (Cell C16) | C31: =C19*C28*24/(C14*C15) -> 137.9310345
B32: Calculated IV Loading Dose (Cp desired - Cp current)*Vd | C32: =IF(C26<C19,(C19-C26)*C7/0.91,"") -> 
B33: Input Rounded Dose (mg/day) | C33: 0
B34: Calculated Steady State Level (mg/L) | C34: =C14*C15*C33/(C28*24) -> 0
B35: Days to 93.75% of Steady State Level For Rising Levels | C35: =IF(C26<C34,-LN(0.125/(1-C26/C34))/(C37*24),"") -> 
B36: Daily Dose (mg) Used in Table and Graphic Below | C36: =IF(ISNUMBER(C33),C33,C22) -> 0
B37: K (1/hours) Used in Table and Graphic Below | C37: =IF(ISNUMBER(C28),C28/C7,C10) -> 0.005888449218
B38: For Educational Use Only. No warrenties are expressed or implied.
B39: Clear/update all input cells before stating new patient input.
B41: Serum Levels Below Are Calculated By The Method of Superposition | F41: Hide | G41: hide | H41: Hide
B42: Population Based Without Levels or Serum Level Based if Serum Levels Entered | F42: Steady State Level Used (mg/L)
B43: Starting Level if drug is on board from Prior Level (mg/L) | C43: =IF(ISNUMBER(C26),C26,"") -> 29 | F43: =IF(ISNUMBER(C34),C34,C23) -> 0
A44: Day | C44: Peak (mg/L) | D44: Trough Before Next Dose (mg/L) | E44: Average Level (mg/L) | F44: Time To Steady State | G44: Days To State State or 4 Half-Lives) | H44: Time to Level (Days) book eq | I44: Time to Level (Days) | J44: Time (Days) from Level to Steady State
A45: 1 | B45: Dose 1 | C45: =IF(ISNUMBER(C43),(C$14*C$15*C$36/(C$7))+C43,(C$14*C$15*C$36/(C$7))) -> 29 | D45: =C45*EXP(-C$37*24) -> 25.17806172 | E45: =(C45+D45)/2 -> 27.08903086 | F45: =-LN(1-0.875)/(C37*24) -> 14.71412835 | G45: =IF(F45>0,F45,"") -> 14.71412835 | H45: =IF(F45>0,-(LN(1-E45/F$43))/(C$37*24),"") ->  | I45: =IF(F45>0,-LN((F$43-E45)/F$43)/(C$37*24),"") ->  | J45: =IF(F$45>I45,F$45-I45,"") -> 
A46: 2 | B46: Dose 2 | C46: =(C$14*C$15*C$36/(C$7)+D45) -> 25.17806172 | D46: =C46*EXP(-C$37*24) -> 21.85982042 | E46: =(C46+D46)/2 -> 23.51894107 | F46: =F45-1 -> 13.71412835 | G46: =IF(F46>0,F46,"") -> 13.71412835
A47: 3 | B47: Dose 3 | C47: 21.85982042 | D47: 18.97889337 | E47: 20.41935689 | F47: =F46-1 -> 12.71412835 | G47: 12.71412835
A48: 4 | B48: Dose 4 | C48: 18.97889337 | D48: 16.4776465 | E48: 17.72826994 | F48: =F47-1 -> 11.71412835 | G48: 11.71412835
A49: 5 | B49: Dose 5 | C49: 16.4776465 | D49: 14.3060414 | E49: 15.39184395 | F49: 10.71412835 | G49: 10.71412835
A50: 6 | B50: Dose 6 | C50: 14.3060414 | D50: 12.42063426 | E50: 13.36333783 | F50: 9.714128349 | G50: 9.714128349
A51: 7 | B51: Dose 7 | C51: 12.42063426 | D51: 10.78370676 | E51: 11.60217051 | F51: 8.714128349 | G51: 8.714128349
A52: 8 | B52: Dose 8 | C52: 10.78370676 | D52: 9.362511528 | E52: 10.07310914 | F52: 7.714128349 | G52: 7.714128349
A53: 9 | B53: Dose 9 | C53: 9.362511528 | D53: 8.128617004 | E53: 8.745564266 | F53: 6.714128349 | G53: 6.714128349
A54: 10 | B54: Dose 10 | C54: 8.128617004 | D54: 7.057338643 | E54: 7.592977823 | F54: 5.714128349 | G54: 5.714128349
A55: 11 | B55: Dose 11 | C55: 7.057338643 | D55: 6.127245101 | E55: 6.592291872 | F55: 4.714128349 | G55: 4.714128349
A56: 12 | B56: Dose 12 | C56: 6.127245101 | D56: 5.319729495 | E56: 5.723487298 | F56: 3.714128349 | G56: 3.714128349
A57: 13 | B57: Dose 13 | C57: 5.319729495 | D57: 4.618637157 | E57: 4.969183326 | F57: 2.714128349 | G57: 2.714128349
A58: 14 | B58: Dose 14 | C58: 4.618637157 | D58: 4.009942463 | E58: 4.31428981 | F58: 1.714128349 | G58: 1.714128349
A59: 15 | B59: Dose 15 | C59: 4.009942463 | D59: 3.481468235 | E59: 3.745705349 | F59: 0.7141283489 | G59: 0.7141283489
A60: 16 | B60: Dose 16 | C60: 3.481468235 | D60: 3.022642142 | E60: 3.252055189 | F60: -0.2858716511
A61: 17 | B61: Dose 17 | C61: 3.022642142 | D61: 2.624285186 | E61: 2.823463664 | F61: -1.285871651
A62: 18 | B62: Dose 18 | C62: 2.624285186 | D62: 2.278428083 | E62: 2.451356635 | F62: -2.285871651
A63: 19 | B63: Dose 19 | C63: 2.278428083 | D63: 1.978151824 | E63: 2.128289953 | F63: -3.285871651
A64: 20 | B64: Dose 20 | C64: 1.978151824 | D64: 1.717449266 | E64: 1.847800545 | F64: -4.285871651
A65: 21 | B65: Dose 21 | C65: 1.717449266 | D65: 1.491104953 | E65: 1.604277109 | F65: -5.285871651
A66: 22 | B66: Dose 22 | C66: 1.491104953 | D66: 1.294590777 | E66: 1.392847865 | F66: -6.285871651
A67: 23 | B67: Dose 23 | C67: 1.294590777 | D67: 1.123975396 | E67: 1.209283087 | F67: -7.285871651
A68: 24 | B68: Dose 24 | C68: 1.123975396 | D68: 0.9758455826 | E68: 1.049910489 | F68: -8.285871651
A69: 25 | B69: Dose 25 | C69: 0.9758455826 | D69: 0.8472379417 | E69: 0.9115417622 | F69: -9.285871651
A70: 26 | B70: Dose 26 | C70: 0.8472379417 | D70: 0.7355796272 | E70: 0.7914087845 | F70: -10.28587165
A71: 27 | B71: Dose 27 | C71: 0.7355796272 | D71: 0.6386368709 | E71: 0.6871082491 | F71: -11.28587165
A72: 28 | B72: Dose 28 | C72: 0.6386368709 | D72: 0.5544702949 | E72: 0.5965535829 | F72: -12.28587165
A73: 29 | B73: Dose 29 | C73: 0.5544702949 | D73: 0.4813961141 | E73: 0.5179332045 | F73: -13.28587165

Sheet SSNonSteadyStateDosing
B1: Educational Use Only. No warrenties are expressed or implied.
B2: Phenobarbital Population Based Dosing | C2: Pkineticdrugdosing.com
B3: Select Patient Age Range - Drop Down Box | C3: 19 - 65 years
B4: Input Weight (kg)
B5: Select Interacting Med. Being Taken - Drop Down Box | C5: None
B6: Clearance Multiplication Factor for Drug Interaction | C6: =VLOOKUP(C5,ParameterSelection!Q2:R6,2,FALSE) -> 1
B7: Population Volume of Distribution (L/kg) | C7: =VLOOKUP(C3,ParameterSelection!G8:I15,3,FALSE) -> 0.61
B8: Calculated Volume of Distribution (Liters) | C8: =C7*C4 -> 0
B9: Population Clearnace (L/hour/kg) | C9: =VLOOKUP(C3,ParameterSelection!G8:H15,2,FALSE) -> 0.004166666667
B10: Calculated Clearance (L/hours) | C10: =C4*C9*C6 -> 0
B11: K calculated (1/hours) | C11: =C10/C8 -> 
B12: Half Life (Days) | C12: =0.693/(24*C11) ->  | F12: 20
B13: Days to 87.5% of Steady State (3 half-lives) | C13: =C12*3 -> 
B14: Select Dosage Form (Note IV product is given rectally) Drop Down Box | C14: Oral
B15: Fraction Absorbed (F) for Dosage Form | C15: =IF(C14="IV",1,IF(C14="IM",1,IF(C14="Rectal",0.9,IF(C14="Oral",1)))) -> 1
B16: Salt (S) for Dosage Form (Assume IV is used for Rectal) | C16: =IF(C14="IV",0.91,IF(C14="IM",0.91,IF(C14="Oral",1,IF(C14="Rectal",0.91)))) -> 1
B17: Input Peak Level (mg/L) Desired From Loading Dose
B18: Calculated Loading Dose (mg) For IV Administration | C18: =C17*C4*C7/0.91 -> 0
B19: Calculated Loading Dose (mg/kg) | C19: =C18/C4 -> 
B20: Input Desired Average Steady State Level (mg/L)
B21: Calculated Maintenance Dose (mg/day) | C21: =C20*C10*24/(C15*C16) -> 0
B22: Calculated Maintenance Dose (mg/kg/day) | C22: =C21/C4 -> 
B23: Enter level before initial dose (mg/L) if drug on board
B24: Enter Number of Doses given
B25: Input Dosing Interval (Hours), usually 24 hours
B26: Input Rounded Dose (mg) per Interval
B27: Calculated Average Steady State Level (mg/L) | C27: =C15*C16*C26/(C10*C25) -> 
B28: Expected trough level (mg/L) after N doses administered and entered starting level. | C28: =(C$15*C$16*C$26*(1-EXP(-C11*C$24*C25))*EXP(-C11*C25)/(C$8*(1-EXP(-C11*C25))))+C$23*EXP(-C11*C$24*C25) -> 
B30: Patient Specific Dosing Based on Serum Levels
B31: Input Measured Trough Level after N doses administered (mg/L)
A32: hide | B32: Input Multiplier of K (eg 0.75, 1.25, 0.90, 1.10)
B33: Estimate of K (Population K * K multiplier) | C33: 0.003388819944
B34: Estimated Trough Level after N Dose (mg/L) | C34: =(C$15*C$16*C$26*(1-EXP(-C33*C$24*C25))*EXP(-C33*C25)/(C$8*(1-EXP(-C33*C25))))+C$23*EXP(-C33*C$24*C25) ->  | D34: =IF(ISNUMBER(C34),((C34-C31)^2) /(0.1^2*C31^2)+(((C8*C11-C33*C8)^2)/(C8*C11/10)^2),10) -> 10
B35: Predicted Level - Actual Level: (Value to Minimize) | C35: =IF(ISNUMBER(C34),(C34-C31)^2,10) -> 10
B36: Calculated Days To Obtain Desired Level (cell c20) when Measured Level Is Greater Than Desired Level. Assumes Doses Are Held During This Time . | C36: =IF(C34>C20,LN(C34/C20)/(C38*24),"") -> 
B37: Calculated Clearance (L/hour) for measured level | C37: =C33*C8 -> 0
B38: Calculated K (1/hours) for measured level | C38: =C37/C8 -> 
B39: Calculated Half-Life (Days) for measured level | C39: =0.693/(24*C38) -> 
B40: Daily Dose (mg/day) Required For Desired Level Input Above in Cell C20. | C40: =C20*C37*24/(C15*C16) -> 0
B41: Calculated IV Loading Dose (mg) = (Cp average desired - Cp current)*Vd | C41: =IF(C34<C20,(C20-C34)*C8/0.91,"") -> 
B42: Input Dosing Interval (Hours), usually 24 hours
B43: Input Rounded Dose (mg/day)
B44: Calculated Average Steady State Level (mg/L) | C44: =C15*C16*C43/(C37*C42) -> 
B45: Days to 87.5% of Steady State Level For Rising Levels | C45: =IF(AND(C34<C44,C34/C44<0.875),-LN(0.125/(1-C34/C44))/(C47*C42),"") -> 
B46: Daily Dose (mg) Used in Table and Graphic Below | C46: =IF(ISNUMBER(C43),C43,C26) -> 0
B47: K (1/hours) Used in Table and Graphic Below | C47: =IF(ISNUMBER(C31),C37/C8,C11) -> 
B48: For Educational Use Only. No warrenties are expressed or implied.
B49: Clear all input cells, except for drop down boxes, by backspacing through them before stating a new patient input.
B51: Serum Levels Below Are Calculated By The Method of Superposition | F51: Hide | G51: hide | H51: Hide
B52: Population Based Dosing Without Levels or Patient Specifin if Serum Levels Are Entered. | F52: Steady State Level Used (mg/L)
B53: Starting Level if drug is on board from Prior Level (mg/L) | C53: =IF(ISNUMBER(C34),C34,"") ->  | F53: =IF(ISNUMBER(C44),C44,C27) -> 
A54: Dose | C54: Peak (mg/L) After Dose | D54: Trough Before Next Dose (mg/L) | E54: Average Level (mg/L) | F54: Time To Steady State | G54: Days To State State or 4 Half-Lives) | H54: Time to Level (Days) book eq | I54: Time to Level (Days) | J54: Time (Days) from Level to Steady State
A55: 1 | B55: Dose 1 | C55: =IF(ISNUMBER(C53),(C$15*C$16*C$46/(C$8))+C53,(C$15*C$16*C$46/(C$8))) ->  | D55: =IF(ISNUMBER(C$42),C55*EXP(-C$47*C$42),C55*EXP(-C$47*C$25)) ->  | E55: =(C55+D55)/2 ->  | F55: =-LN(1-0.875)/(C47*24) ->  | G55: =IF(F55>0,F55,"") ->  | H55: =IF(F55>0,-(LN(1-E55/F$53))/(C$47*24),"") ->  | I55: =IF(F55>0,-LN((F$53-E55)/F$53)/(C$47*24),"") ->  | J55: =IF(F$55>I55,F$55-I55,"") -> 
A56: 2 | B56: Dose 2 | C56: =(C$15*C$16*C$46/(C$8)+D55) ->  | D56: =IF(ISNUMBER(C$42),C56*EXP(-C$47*C$42),C56*EXP(-C$47*C$25)) ->  | E56: =(C56+D56)/2 ->  | F56: =F55-1 ->  | G56: =IF(F56>0,F56,"") -> 
A57: 3 | B57: Dose 3 | F57: =F56-1 -> 
A58: 4 | B58: Dose 4 | F58: =F57-1 -> 
A59: 5 | B59: Dose 5
A60: 6 | B60: Dose 6
A61: 7 | B61: Dose 7
A62: 8 | B62: Dose 8
A63: 9 | B63: Dose 9
A64: 10 | B64: Dose 10
A65: 11 | B65: Dose 11
A66: 12 | B66: Dose 12
A67: 13 | B67: Dose 13
A68: 14 | B68: Dose 14
A69: 15 | B69: Dose 15
A70: 16 | B70: Dose 16
A71: 17 | B71: Dose 17
A72: 18 | B72: Dose 18
A73: 19 | B73: Dose 19
A74: 20 | B74: Dose 20
A75: 21 | B75: Dose 21
A76: 22 | B76: Dose 22
A77: 23 | B77: Dose 23
A78: 24 | B78: Dose 24
A79: 25 | B79: Dose 25
A80: 26 | B80: Dose 26
A81: 27 | B81: Dose 27
A82: 28 | B82: Dose 28
A83: 29 | B83: Dose 29

Sheet ParameterSelection (hidden)
B1: Dosage Form | C1: Fraction Absormed | D1: Salt | E1: Peak | G1: Age | H1: Clearnace (L/hr)/kg | I1: Vd (l/kg) | J1: K | K1: T1/2 | M1: Winters | N1: Clearance | O1: Vd | Q1: Drug Interactions | R1: Clearance Multiplier
B2: IV | C2: 1 | D2: 0.91 | E2: Immediate | G2: < 2 weeks | H2: 0.0047 | I2: 0.96 | J2: =H2/I2 -> 0.004895833333 | K2: =0.693/J2 -> 141.5489362 | N2: 0.004 | O2: 0.9 | Q2: None | R2: 1
B3: IM | C3: 1 | D3: 0.91 | E3: 3 | G3: < 1 year | H3: 0.0047 | I3: 0.63 | J3: =H3/I3 -> 0.00746031746 | K3: =0.693/J3 -> 92.89148936 | Q3: Chloramphenicol | R3: 0.6
B4: Oral | C4: 0.9 | D4: 1 | E4: 2 | G4: 1 - < 19 years | H4: 0.0082 | I4: 0.63 | J4: =H4/I4 -> 0.01301587302 | K4: =0.693/J4 -> 53.24268293 | N4: 0.008 | O4: 0.7 | Q4: Phenothiazines | R4: 1.3
B5: Rectal | C5: 0.9 | D5: 0.91 | E5: 1.5 | G5: 19-65 years | H5: 0.0056 | I5: 0.61 | J5: =H5/I5 -> 0.009180327869 | K5: =0.693/J5 -> 75.4875 | N5: 0.004 | O5: 0.7 | Q5: Valproic Acid (1000 mg/day) | R5: 0.75
G6: > 65 years | H6: 0.0024 | I6: 0.61 | J6: =H6/I6 -> 0.00393442623 | K6: =0.693/J6 -> 176.1375 | N6: 0.003 | O6: 0.7 | Q6: Valrpoic Acid (2000 mg/day) | R6: 0.5
G7: Age | H7: Clearance L/hr/kg | I7: Vd L/kg | J7: K Calc | K7: T1/2 calc
G8: Neonates < 2 weeks | H8: 0.00625 | I8: 0.96 | J8: =H8/I8 -> 0.006510416667 | K8: =0.693/J8 -> 106.4448
G9: Infants 2 weeks - < 1 year | H9: 0.01041666667 | I9: 0.63 | J9: =H9/I9 -> 0.01653439153 | K9: =0.693/J9 -> 41.91264
G10: 1- 5 years | H10: 0.009375 | I10: 0.63 | J10: 0.01488095238 | K10: 46.5696
G11: 5 - < 10 years | H11: 0.0075 | I11: 0.63 | J11: 0.0119047619 | K11: 58.212
G12: 10 - < 15 years | H12: 0.006041666667 | I12: 0.63 | J12: 0.00958994709 | K12: 72.26317241
G13: 15 - < 19 years | H13: 0.005208333333 | I13: 0.63 | J13: 0.008267195767 | K13: 83.82528
G14: 19 - 65 years | H14: 0.004166666667 | I14: 0.61 | J14: 0.006830601093 | K14: 101.4552
G15: > 65 years | H15: 0.003229166667 | I15: 0.61 | J15: 0.005293715847 | K15: 130.9099355

Sheet Regression Analysis Parameters (hidden)
B1: Age (min) | C1: Age (max) | D1: average age | E1: Enter Average Weight for age group | F1: ASHP PK Recommended Dose mg/kg/day | G1: Calculated Clearance (L/kg/hour)=D/(Tau*Cpssavg) | H1: ASHP Clearance (l/kg/hour) | I1: Lexicomp mg/kg/day
B2: < 2 weeks | C2: =2/52 -> 0.03846153846 | D2: =2/52 -> 0.03846153846 | F2: 3 | G2: =F2/(20*24) -> 0.00625 | H2: 0.0047
B3: 2 weeks | C3: 1 year | D3: 1 | F3: 5 | G3: =F3/(20*24) -> 0.01041666667 | H3: 0.0047 | I3: 5.5
A4: Years | B4: 1 | C4: 5 | D4: =AVERAGE(B4:C4) -> 3 | F4: 4.5 | G4: 0.009375 | H4: 0.0082 | I4: 7
A5: Years | B5: 5 | C5: 10 | D5: =AVERAGE(B5:C5) -> 7.5 | F5: 3.6 | G5: 0.0075 | H5: 0.0082 | I5: 5
A6: Years | B6: 10 | C6: 15 | D6: =AVERAGE(B6:C6) -> 12.5 | F6: 2.9 | G6: 0.006041666667 | H6: 0.0082 | I6: 1.5
A7: Years | B7: 15 | C7: 19 | D7: =AVERAGE(B7:C7) -> 17 | F7: 2.5 | G7: 0.005208333333 | H7: 0.0082 | I7: 1.5
A8: Years | B8: 19 | C8: 65 | D8: =AVERAGE(B8:C8) -> 42 | F8: 2 | G8: 0.004166666667 | H8: 0.0056
A9: Years | B9: > 65 | C9: 82 | D9: 82 | F9: =(1.1+2)/2 -> 1.55 | G9: 0.003229166667 | H9: 0.0024
F10: Phenobarbital pop PK across pedicatric age spectrum
C11: < 31 days | D11: =2/52 -> 0.03846153846 | F11: 4 | G11: =F11/(31.5*24) -> 0.005291005291
C12: 31d- < 2yr | D12: 1 | F12: 6 | G12: =F12/(27.6*24) -> 0.009057971014
C13: 2-12 yr | D13: 7 | F13: 6 | G13: =F13/(31.3*24) -> 0.007987220447
C14: 13-18 Y | D14: 15.5 | F14: 5 | G14: =F14/(30.3*24) -> 0.006875687569

Sheet Time to Steady State Level (hidden)
